[Event "Vojvodina Open 2024-A 2024"]
[Site "Novi Sad"]
[Date "2024.06.24"]
[Round "1.5"]
[White "Popchev, Milko"]
[Black "Harshavardhan G B"]
[Result "0-1"]
[ECO "D05"]
[WhiteElo "2159"]
[BlackElo "2433"]
[Annotator "TA"]
[PlyCount "66"]
[EventDate "2024.06.03"]
[EventType "swiss"]
[EventCountry "SRB"]
[SourceTitle "playchess.com"]
[Source "ChessBase"]
[SourceQuality "1"]
[TimeControl "40/5400+30:900+30"]

{[%evp 14,66,8,-8,14,-10,-13,-32,24,14,27,0,0,0,8,0,32,26,24,28,37,26,27,14,72,78,76,52,97,50,110,0,0,-187,-161,-496,-493,-469,-499,-498,-470,-479,-396,-502,-502,-474,-488,-561,-572,-805,-778,-983,-974,-777,-733]} 1. d4 {[%emt 0:00:21]} Nf6 {[%emt 0:03:16]} 2. Nf3 {[%emt 0:00:26]} e6 {[%emt 0:00:22]} 3. c3 {[%emt 0:01:36]} c5 {[%emt 0:01:00]} 4. e3 {[%emt 0:00:24]} d5 {[%emt 0:03:28]} 5. Bd3 {[%emt 0:00:35]} Bd6 {[%emt 0:00:44]} 6. Nbd2 {[%emt 0:00:15]} Nc6 {[%emt 0:01:42]} 7. O-O {[%emt 0:00:32]} O-O {[%emt 0:00:12]} 8. a3 {[%emt 0:00:29]} b6 {[%emt 0:01:48][%cal Bb7b6,Bb6c5,Bc5c4][%mdl 32]} 9. b4 {[%emt 0:00:07]} Qc7 {[%emt 0:07:26]} 10. Bb2 {[%emt 0:02:25]} e5 {[%emt 0:19:52]} (10... c4 $15 11. Bc2 Ne7) 11. dxc5 $11 {[%emt 0:01:00]} bxc5 {[%emt 0:00:10] ...c4 is the strong threat.} 12. e4 {[%emt 0:00:09]} c4 {[%emt 0:09:58]} 13. Bc2 {[%emt 0:01:45]} Be6 {[%emt 0:02:12]} 14. Re1 {[%emt 0:06:03]} d4 {[%emt 0:08:54]} 15. cxd4 {[%emt 0:02:00]} exd4 {[%emt 0:00:12] aiming for ...c3.} 16. e5 $1 {[%emt 0:02:00]} ({And not} 16. Nxd4 Bxh2+ 17. Kf1 (17. Kh1 $2 Ng4 $17) 17... Bg4 $19) 16... Nxe5 {[%emt 0:06:28] Hoping for ...c3.} 17. Bxd4 {[%emt 0:00:33][%cal Rf3e5]} Nxf3+ {[%emt 0:07:50]} 18. Nxf3 {[%emt 0:00:29] Threatening Bxf6.} Be7 {[%emt 0:04:16]} (18... Rad8 $11) 19. Qe2 $16 {[%emt 0:01:34] Strongly threatening Ng5.} Rfe8 {[%emt 0:03:40]} 20. Be5 {[%emt 0:04:11]} Qc8 {[%emt 0:02:02] [#]} 21. h3 {[%emt 0:01:56]} ({Better is} 21. Nd4 $1 $16) 21... Bd5 {[%emt 0:02:38] [#]} (21... a5 $14) 22. Rad1 {[%emt 0:01:19]} ({White should play} 22. Ba4 $1 $16 {[%cal Ra4e8]} Nd7 23. Bd4) 22... Bd6 $1 $11 {[%emt 0:02:22]} 23. Rxd5 {[%emt 0:01:00]} Nxd5 $19 {[%emt 0:00:12]} 24. Bxh7+ $2 {[%emt 0:00:37]} (24. Qd2 {is a better chance.} Bxe5 25. Rxe5) 24... Kxh7 {[%emt 0:00:50]} 25. Qe4+ {[%emt 0:10:35]} Kg8 {[%emt 0:00:20]} 26. Qxd5 {[%emt 0:00:23]} Bxe5 {[%emt 0:00:30]} 27. Nxe5 {[%emt 0:07:39]} Qe6 {[%emt 0:01:50]} 28. Qd4 {[%emt 0:54:07]} Rad8 {[%emt 0:01:12] Black is clearly winning.} 29. Qc3 {[%emt 0:00:00]} Qf6 {[%emt 0:01:08]} 30. Qg3 {[%emt 0:00:00]} Qd6 {[%emt 0:02:24]} 31. f4 {[%emt 0:00:00]} f6 {[%emt 0:01:12]} 32. Nxc4 {[%emt 0:00:00]} Rxe1+ {[%emt 0:00:16]} 33. Qxe1 {[%emt 0:00:00]} Qd4+ {[%emt 0:00:14] Weighted Error Value: White=0.89/Black=0.18 (very precise) .  Loses game:     	White=1     	---        Mistake:       	White=3     	Black=3      Inaccurate:     	White=2     	Black=2      OK:         	White=7     	Black=6      Best:        	---       	Black=3      Strong:       	White=1     	Black=1} 0-1

[Event "Vojvodina Open 2024-A 2024"]
[Site "Novi Sad"]
[Date "2024.06.24"]
[Round "1.6"]
[White "Sedlak, Nikola"]
[Black "Prieb, Robert"]
[Result "1-0"]
[ECO "A16"]
[WhiteElo "2426"]
[BlackElo "2137"]
[Annotator "RC"]
[PlyCount "57"]
[EventDate "2024.06.03"]
[EventType "swiss"]
[EventCountry "SRB"]
[SourceTitle "playchess.com"]
[Source "ChessBase"]
[SourceQuality "1"]
[TimeControl "40/5400+30:900+30"]

1. Nf3 {[%emt 0:00:04]} Nf6 {[%emt 0:00:14]} 2. c4 {[%emt 0:00:24]} g6 {[%emt 0:00:21]} 3. Nc3 {[%emt 0:00:17]} d5 {[%emt 0:00:20]} 4. cxd5 {[%emt 0:00:26]} Nxd5 {[%emt 0:00:11]} 5. e4 {[%emt 0:01:13]} Nxc3 {[%emt 0:00:15]} 6. dxc3 {[%emt 0:00:09]} Qxd1+ {[%emt 0:00:47]} 7. Kxd1 {[%emt 0:00:09]} Bg7 {[%emt 0:01:05]} 8. Bf4 {[%emt 0:00:36]} c5 {[%emt 0:02:58]} 9. Bb5+ {[%emt 0:03:24]} Bd7 {[%emt 0:01:59]} 10. a4 {[%emt 0:07:11]} O-O {[%emt 0:02:36]} 11. Kc2 {[%emt 0:03:27]} Nc6 {[%emt 0:08:16]} 12. Rhd1 {[%emt 0:03:28]} Bg4 {[%emt 0:05:05]} 13. h3 {[%emt 0:04:53]} Bxf3 {[%emt 0:00:26]} 14. gxf3 {[%emt 0:00:09]} Ne5 {[%emt 0:07:40]} 15. Rd5 {[%emt 0:06:22]} Nxf3 {[%emt 0:01:46]} 16. Be2 {[%emt 0:00:35]} e5 {[%emt 0:00:50]} 17. Be3 {[%emt 0:00:34]} Nh4 {[%emt 0:00:36]} 18. Bxc5 {[%emt 0:00:17]} Rfe8 {[%emt 0:01:56]} 19. Rd7 {[%emt 0:01:38]} b6 {[%emt 0:01:56]} 20. Bc4 {[%emt 0:06:46]} bxc5 {[%emt 0:01:22]} 21. Bxf7+ {[%emt 0:00:23]} Kh8 {[%emt 0:01:19]} 22. Bxe8 {[%emt 0:00:07]} Rxe8 {[%emt 0:00:08]} 23. Rxa7 {[%emt 0:00:05]} Rf8 {[%emt 0:00:46]} 24. Rc7 {[%emt 0:00:15]} Rxf2+ {[%emt 0:01:00]} 25. Kb3 {[%emt 0:00:06]} Bh6 {[%emt 0:03:38]} 26. a5 {[%emt 0:01:07]} Nf3 {[%emt 0:03:17]} 27. a6 {[%emt 0:02:03]} c4+ {[%emt 0:00:50]} 28. Kxc4 {[%emt 0:00:20]} Be3 {[%emt 0:00:08]} 29. a7 {[%emt 0:00:17]} 1-0

[Event "Vojvodina Open 2024-A 2024"]
[Site "Novi Sad"]
[Date "2024.06.24"]
[Round "1.7"]
[White "Yalcinkaya, Efe"]
[Black "Harsh Suresh"]
[Result "1/2-1/2"]
[ECO "C79"]
[WhiteElo "2070"]
[BlackElo "2426"]
[Annotator "RC"]
[PlyCount "119"]
[EventDate "2024.06.03"]
[EventType "swiss"]
[EventCountry "SRB"]
[SourceTitle "playchess.com"]
[Source "ChessBase"]
[SourceQuality "1"]
[TimeControl "40/5400+30:900+30"]

1. e4 {[%emt 1:31:00]} e5 {[%emt 0:21:00]} 2. Nf3 {[%emt 0:00:00]} Nc6 {[%emt 0:00:07]} 3. Bb5 {[%emt 0:00:00]} a6 {[%emt 0:00:12]} 4. Ba4 {[%emt 0:00:00]} Nf6 {[%emt 0:00:08]} 5. O-O {[%emt 0:00:00]} d6 {[%emt 0:00:15]} 6. c3 {[%emt 0:00:00]} Bd7 {[%emt 0:00:32]} 7. Re1 {[%emt 0:00:00]} g6 {[%emt 0:00:16]} 8. d4 {[%emt 0:00:00]} Bg7 {[%emt 0:00:14]} 9. d5 {[%emt 0:00:00]} Ne7 {[%emt 0:00:15]} 10. Bc2 {[%emt 0:00:00]} h6 {[%emt 0:01:49]} 11. c4 {[%emt 0:00:00]} O-O {[%emt 0:02:50]} 12. Nc3 {[%emt 0:00:00]} b5 {[%emt 0:12:34]} 13. c5 {[%emt 0:00:00]} Bg4 {[%emt 0:13:58]} 14. c6 {[%emt 0:00:00]} Nh7 {[%emt 0:01:47]} 15. h3 {[%emt 0:00:00]} Bxf3 {[%emt 0:00:38]} 16. Qxf3 {[%emt 0:00:00]} f5 {[%emt 0:00:14]} 17. Qe2 {[%emt 0:00:00]} b4 {[%emt 0:07:32]} 18. Nb1 {[%emt 0:00:00]} fxe4 {[%emt 0:02:19]} 19. Bxe4 {[%emt 0:00:00]} Nf6 {[%emt 0:00:28]} 20. f3 {[%emt 0:00:00]} Qe8 {[%emt 0:02:54]} 21. Qc4 {[%emt 0:00:00]} Qf7 {[%emt 0:02:19]} 22. Rd1 {[%emt 0:00:00]} Rab8 {[%emt 0:05:23]} 23. a4 {[%emt 0:00:00]} a5 {[%emt 0:04:36]} 24. b3 {[%emt 0:00:00]} Kh8 {[%emt 0:04:40]} 25. Be3 {[%emt 0:00:00]} Nf5 {[%emt 0:01:37]} 26. Bf2 {[%emt 0:00:00]} Nd4 {[%emt 0:00:17]} 27. Nd2 {[%emt 0:00:00]} h5 {[%emt 0:02:24]} 28. Ra2 {[%emt 0:00:00]} Rbe8 {[%emt 0:01:55]} 29. Nf1 {[%emt 0:00:04]} g5 {[%emt 0:03:35]} 30. Ne3 {[%emt 0:07:12]} Nxe4 {[%emt 0:02:46]} 31. fxe4 {[%emt 0:00:05]} Qg6 {[%emt 0:00:04]} 32. Nc2 {[%emt 0:02:56]} Qxe4 {[%emt 0:01:25]} 33. Nxd4 {[%emt 0:01:05]} exd4 {[%emt 0:00:05]} 34. Rad2 {[%emt 0:00:44]} d3 {[%emt 0:02:48]} 35. Qxd3 {[%emt 0:00:57]} Qxd3 {[%emt 0:00:12]} 36. Rxd3 {[%emt 0:00:03]} Re2 {[%emt 0:00:09]} 37. Rf3 {[%emt 0:01:03]} Rxf3 {[%emt 0:00:44]} 38. gxf3 {[%emt 0:00:04]} Rc2 {[%emt 0:01:47]} 39. Re1 {[%emt 0:03:29]} Be5 {[%emt 0:00:18]} 40. Rxe5 {[%emt 0:00:00]} dxe5 {[%emt 0:00:00]} 41. Bg3 {[%emt 0:01:07]} Kg8 {[%emt 0:04:33]} 42. Bxe5 {[%emt 0:00:07]} Rc5 {[%emt 0:01:15]} 43. Bxc7 {[%emt 0:02:00]} Rxd5 {[%emt 0:00:05]} 44. Bb6 {[%emt 0:00:16]} Kf7 {[%emt 0:00:29]} 45. c7 {[%emt 0:00:33]} Rd1+ {[%emt 0:00:06]} 46. Kf2 {[%emt 0:03:04]} Rc1 {[%emt 0:00:08]} 47. Bxa5 {[%emt 0:00:25]} Ke6 {[%emt 0:00:26]} 48. Kg3 {[%emt 0:02:37]} h4+ {[%emt 0:07:28]} 49. Kg4 {[%emt 0:01:50]} Rg1+ {[%emt 0:00:10]} 50. Kh5 {[%emt 0:00:34]} Kd7 {[%emt 0:00:08]} 51. Bxb4 {[%emt 0:00:55]} Rg3 {[%emt 0:01:02]} 52. Bd2 {[%emt 0:03:56]} Rxh3 {[%emt 0:02:58]} 53. Bxg5 {[%emt 0:01:06]} Rxf3 {[%emt 0:00:16]} 54. Bxh4 {[%emt 0:00:41]} Kxc7 {[%emt 0:00:59]} 55. b4 {[%emt 0:00:10]} Re3 {[%emt 0:00:44]} 56. Bf2 {[%emt 0:00:29]} Re4 {[%emt 0:01:00]} 57. Bc5 {[%emt 0:00:04]} Kc6 {[%emt 0:00:14]} 58. a5 {[%emt 0:00:04]} Re2 {[%emt 0:00:15]} 59. a6 {[%emt 0:00:09]} Ra2 {[%emt 0:00:17]} 60. a7 {[%emt 0:00:02]} 1/2-1/2

[Event "Vojvodina Open 2024-A 2024"]
[Site "Novi Sad"]
[Date "2024.06.24"]
[Round "1.8"]
[White "Pap, Misa"]
[Black "Pasa, Ahmet"]
[Result "1/2-1/2"]
[ECO "C88"]
[WhiteElo "2374"]
[BlackElo "2056"]
[Annotator "RC"]
[PlyCount "117"]
[EventDate "2024.06.03"]
[EventType "swiss"]
[EventCountry "SRB"]
[SourceTitle "playchess.com"]
[Source "ChessBase"]
[SourceQuality "1"]
[TimeControl "40/5400+30:900+30"]

1. e4 {[%emt 0:00:11]} e5 {[%emt 0:00:08]} 2. Nf3 {[%emt 0:00:06]} Nc6 {[%emt 0:00:05]} 3. Bb5 {[%emt 0:00:40]} a6 {[%emt 0:00:16]} 4. Ba4 {[%emt 0:00:03]} Nf6 {[%emt 0:00:13]} 5. O-O {[%emt 0:00:16]} Be7 {[%emt 0:00:07]} 6. Re1 {[%emt 0:00:06]} b5 {[%emt 0:00:03]} 7. Bb3 {[%emt 0:00:07]} O-O {[%emt 0:00:22]} 8. a4 {[%emt 0:00:19]} d5 {[%emt 0:00:35]} 9. exd5 {[%emt 0:03:59]} Na5 {[%emt 0:02:49]} 10. Nxe5 {[%emt 0:03:16]} Nxb3 {[%emt 0:03:16]} 11. cxb3 {[%emt 0:07:31]} Bb7 {[%emt 0:09:54]} 12. Nc6 {[%emt 0:01:15]} Bxc6 {[%emt 0:00:07]} 13. dxc6 {[%emt 0:00:01]} Bc5 {[%emt 0:03:38]} 14. d4 {[%emt 0:08:18]} Bxd4 {[%emt 0:11:51]} 15. Nc3 {[%emt 0:03:12]} b4 {[%emt 0:23:10]} 16. Ne2 {[%emt 0:01:01]} Re8 {[%emt 0:06:29]} 17. Nxd4 {[%emt 0:13:35]} Rxe1+ {[%emt 0:05:34]} 18. Qxe1 {[%emt 0:00:03]} Qxd4 {[%emt 0:00:07]} 19. Be3 {[%emt 0:03:23]} Qxb2 {[%emt 0:01:22]} 20. Rb1 {[%emt 0:01:55]} Qc2 {[%emt 0:01:50]} 21. Qd1 {[%emt 0:02:05]} Qe4 {[%emt 0:00:59]} 22. Rc1 {[%emt 0:01:58]} a5 {[%emt 0:01:27]} 23. Qd4 {[%emt 0:10:04]} Qe6 {[%emt 0:07:14]} 24. Qc4 {[%emt 0:01:39]} Qxc4 {[%emt 0:11:25]} 25. Rxc4 {[%emt 0:00:07]} Rd8 {[%emt 0:02:57]} 26. h3 {[%emt 0:02:13]} Kf8 {[%emt 0:03:42]} 27. g4 {[%emt 0:03:57]} h6 {[%emt 0:01:39]} 28. Kf1 {[%emt 0:10:47]} Rd5 {[%emt 0:01:17]} 29. Bb6 {[%emt 0:05:32]} Ne8 {[%emt 0:00:25]} 30. Rc5 {[%emt 0:01:15]} Rd1+ {[%emt 0:00:34]} 31. Ke2 {[%emt 0:00:00]} cxb6 {[%emt 0:00:34]} 32. c7 {[%emt 0:00:20]} Nxc7 {[%emt 0:00:01]} 33. Rxc7 {[%emt 0:00:03]} Rb1 {[%emt 0:00:20]} 34. Rc8+ {[%emt 0:00:38]} Ke7 {[%emt 0:00:02]} 35. Rc7+ {[%emt 0:00:04]} Kf8 {[%emt 0:00:28]} 36. Rc8+ {[%emt 0:00:01]} Ke7 {[%emt 0:00:00]} 37. Rc7+ {[%emt 0:00:00]} Ke8 {[%emt 0:00:32]} 38. Rb7 {[%emt 0:00:36]} Rxb3 {[%emt 0:00:32]} 39. Rxb6 {[%emt 0:00:01]} Ra3 {[%emt 0:00:32]} 40. Rb8+ {[%emt 0:00:00]} Ke7 {[%emt 0:00:00]} 41. Rb7+ {[%emt 0:00:01]} Ke6 {[%emt 0:08:08]} 42. Rb6+ {[%emt 0:00:01]} Kd5 {[%emt 0:10:39]} 43. Rb5+ {[%emt 0:00:01]} Kc4 {[%emt 0:00:28]} 44. Rxa5 {[%emt 0:00:01]} b3 {[%emt 0:00:32]} 45. Kd2 {[%emt 0:01:41]} Ra2+ {[%emt 0:00:41]} 46. Kc1 {[%emt 0:00:01]} Kb4 {[%emt 0:00:39]} 47. Rb5+ {[%emt 0:01:37]} Kxa4 {[%emt 0:00:31]} 48. Rf5 {[%emt 0:00:35]} f6 {[%emt 0:00:11]} 49. h4 {[%emt 0:01:21]} Rc2+ {[%emt 0:00:35]} 50. Kb1 {[%emt 0:00:06]} Re2 {[%emt 0:00:44]} 51. g5 {[%emt 0:00:22]} Re1+ {[%emt 0:00:13]} 52. Kb2 {[%emt 0:00:01]} Re2+ {[%emt 0:00:03]} 53. Kb1 {[%emt 0:00:26]} hxg5 {[%emt 0:00:35]} 54. hxg5 {[%emt 0:00:21]} Ka3 {[%emt 0:00:39]} 55. Ra5+ {[%emt 0:00:08]} Kb4 {[%emt 0:00:01]} 56. Ra7 {[%emt 0:00:50]} Re1+ {[%emt 0:00:40]} 57. Kb2 {[%emt 0:00:16]} Re2+ {[%emt 0:02:05]} 58. Kb1 fxg5 {[%emt 0:00:00]} 59. Rxg7 {[%emt 0:00:30]} 1/2-1/2

[Event "Vojvodina Open 2024-A 2024"]
[Site "Novi Sad"]
[Date "2024.06.24"]
[Round "1.9"]
[White "Vihaan Dumir"]
[Black "Popovic, Milan S"]
[Result "0-1"]
[ECO "B23"]
[WhiteElo "2032"]
[BlackElo "2374"]
[Annotator "RC"]
[PlyCount "106"]
[EventDate "2024.06.03"]
[EventType "swiss"]
[EventCountry "SRB"]
[SourceTitle "playchess.com"]
[Source "ChessBase"]
[SourceQuality "1"]
[TimeControl "40/5400+30:900+30"]

1. e4 {[%emt 0:00:02]} c5 {[%emt 0:00:07]} 2. Nc3 {[%emt 0:00:05]} d6 {[%emt 0:00:02]} 3. f4 {[%emt 0:00:07]} g6 {[%emt 0:00:04]} 4. Nf3 {[%emt 0:00:09]} Bg7 {[%emt 0:00:04]} 5. Bc4 {[%emt 0:00:07]} Nc6 {[%emt 0:00:46]} 6. O-O {[%emt 0:00:09]} e6 {[%emt 0:00:05]} 7. d3 {[%emt 0:00:31]} Nge7 {[%emt 0:00:12]} 8. Qe1 {[%emt 0:01:04]} O-O {[%emt 0:00:26]} 9. f5 {[%emt 0:06:48]} gxf5 {[%emt 0:01:47]} 10. Qh4 {[%emt 0:00:14]} fxe4 {[%emt 0:03:50]} 11. dxe4 {[%emt 0:00:08]} Ng6 {[%emt 0:00:56]} 12. Qh5 {[%emt 0:00:08]} Nce5 {[%emt 0:01:38]} 13. Ng5 {[%emt 0:11:31]} h6 {[%emt 0:03:51]} 14. Nxf7 {[%emt 0:32:24]} Rxf7 {[%emt 0:09:48]} 15. Rxf7 {[%emt 0:00:52]} Kxf7 {[%emt 0:04:24]} 16. Bxh6 {[%emt 0:00:21]} Qh4 {[%emt 0:38:18]} 17. Qf5+ {[%emt 0:05:06]} Qf6 {[%emt 0:00:52]} 18. Qh5 {[%emt 0:00:48]} Bxh6 {[%emt 0:01:13]} 19. Qxh6 {[%emt 0:00:40]} Qg7 {[%emt 0:07:55]} 20. Rf1+ {[%emt 0:01:09]} Kg8 {[%emt 0:00:09]} 21. Qg5 {[%emt 0:04:33]} Nxc4 {[%emt 0:06:23]} 22. Qd8+ {[%emt 0:00:12]} Kh7 {[%emt 0:01:39]} 23. Rf3 {[%emt 0:00:12]} Qe7 {[%emt 0:01:59]} 24. Qxe7+ {[%emt 0:01:12]} Nxe7 {[%emt 0:16:02]} 25. Rf7+ {[%emt 0:00:08]} Kg6 {[%emt 0:00:00]} 26. Rxe7 {[%emt 0:00:06]} a6 {[%emt 0:00:00]} 27. b3 {[%emt 0:01:18]} Ne5 {[%emt 0:00:00]} 28. Na4 {[%emt 0:01:02]} Kf6 {[%emt 0:00:00]} 29. Rc7 {[%emt 0:02:50]} Nd7 {[%emt 0:00:00]} 30. Kf2 {[%emt 0:00:04]} b5 {[%emt 0:00:00]} 31. Nb2 {[%emt 0:00:13]} Ne5 {[%emt 0:00:00]} 32. Nd3 {[%emt 0:03:13]} Nxd3+ {[%emt 0:00:00]} 33. cxd3 {[%emt 0:00:05]} e5 {[%emt 0:00:00]} 34. Kf3 {[%emt 0:01:52]} Be6 {[%emt 0:00:40]} 35. h4 {[%emt 0:00:31]} Rh8 {[%emt 0:02:23]} 36. g3 {[%emt 0:00:19]} c4 {[%emt 0:00:34]} 37. dxc4 {[%emt 0:00:30]} bxc4 {[%emt 0:00:03]} 38. bxc4 {[%emt 0:02:29]} Rc8 {[%emt 0:00:22]} 39. Ra7 {[%emt 0:06:29]} Bxc4 {[%emt 0:00:04]} 40. a4 {[%emt 0:00:00]} d5 {[%emt 0:00:00]} 41. exd5 {[%emt 0:01:02]} Bxd5+ {[%emt 0:01:51]} 42. Kf2 {[%emt 0:01:27]} Rc2+ {[%emt 0:00:04]} 43. Ke3 {[%emt 0:01:35]} Rc3+ {[%emt 0:00:08]} 44. Kf2 {[%emt 0:00:57]} Rf3+ {[%emt 0:00:05]} 45. Ke2 {[%emt 0:00:31]} Rxg3 {[%emt 0:00:12]} 46. Rxa6+ {[%emt 0:00:05]} Kf5 {[%emt 0:00:08]} 47. Kf2 {[%emt 0:03:39]} Rh3 {[%emt 0:00:28]} 48. Rh6 {[%emt 0:00:39]} Rf3+ {[%emt 0:00:27]} 49. Ke2 {[%emt 0:00:42]} Ra3 {[%emt 0:00:06]} 50. Rd6 {[%emt 0:02:21]} Be4 {[%emt 0:00:49]} 51. a5 {[%emt 0:03:18]} Rxa5 {[%emt 0:00:11]} 52. h5 {[%emt 0:00:05]} Kg5 {[%emt 0:00:48]} 53. h6 {[%emt 0:00:07]} Bg6 {[%emt 0:00:08]} 0-1

[Event "Vojvodina Open 2024-A 2024"]
[Site "Novi Sad"]
[Date "2024.06.24"]
[Round "1.10"]
[White "Kushagra Mohan"]
[Black "Durucay, Uygar"]
[Result "0-1"]
[ECO "B12"]
[WhiteElo "2367"]
[BlackElo "2026"]
[Annotator "RC"]
[PlyCount "82"]
[EventDate "2024.06.03"]
[EventType "swiss"]
[EventCountry "SRB"]
[SourceTitle "playchess.com"]
[Source "ChessBase"]
[SourceQuality "1"]
[TimeControl "40/5400+30:900+30"]

1. e4 {[%emt 0:01:34]} c6 {[%emt 0:00:30]} 2. d4 {[%emt 0:00:04]} d5 {[%emt 0:00:09]} 3. e5 {[%emt 0:00:02]} Bf5 {[%emt 0:00:07]} 4. Nf3 {[%emt 0:00:04]} e6 {[%emt 0:00:27]} 5. Be2 {[%emt 0:00:02]} Nd7 {[%emt 0:00:42]} 6. O-O {[%emt 0:00:12]} a5 {[%emt 0:00:23]} 7. a4 {[%emt 0:02:02]} f6 {[%emt 0:01:24]} 8. c4 {[%emt 0:01:56]} fxe5 {[%emt 0:03:47]} 9. dxe5 {[%emt 0:01:50]} Bc5 {[%emt 0:04:08]} 10. cxd5 {[%emt 0:02:25]} cxd5 {[%emt 0:06:21]} 11. Nd4 {[%emt 0:08:00]} Ne7 {[%emt 0:10:37]} 12. Be3 {[%emt 0:02:25]} O-O {[%emt 0:03:14]} 13. Nc3 {[%emt 0:04:25]} Qb6 {[%emt 0:05:22]} 14. f4 {[%emt 0:01:02]} Nc6 {[%emt 0:08:17]} 15. Ncb5 {[%emt 0:01:29]} Nxd4 {[%emt 0:05:22]} 16. Bxd4 {[%emt 0:00:19]} Rac8 {[%emt 0:03:50]} 17. Bxc5 {[%emt 0:06:10]} Rxc5 {[%emt 0:02:22]} 18. Kh1 {[%emt 0:00:10]} g6 {[%emt 0:05:57]} 19. Nd4 {[%emt 0:05:22]} Rc7 {[%emt 0:05:54]} 20. Bb5 {[%emt 0:01:53]} Nc5 {[%emt 0:01:32]} 21. Nxf5 {[%emt 0:03:37]} Rxf5 {[%emt 0:04:57]} 22. Qd4 {[%emt 0:00:22]} Nd7 {[%emt 0:00:43]} 23. Qd2 {[%emt 0:01:41]} Nc5 {[%emt 0:02:01]} 24. Qf2 {[%emt 0:01:27]} Rf8 {[%emt 0:03:17]} 25. Rac1 {[%emt 0:01:34]} Rfc8 {[%emt 0:01:27]} 26. Rc3 {[%emt 0:02:08]} Qa7 {[%emt 0:02:20]} 27. Rfc1 {[%emt 0:07:53]} b6 {[%emt 0:00:21]} 28. Qd4 {[%emt 0:02:03]} Nb3 {[%emt 0:06:04]} 29. Rxc7 {[%emt 0:00:16]} Rxc7 {[%emt 0:00:02]} 30. Rxc7 {[%emt 0:00:08]} Qxc7 {[%emt 0:00:05]} 31. Qd1 {[%emt 0:03:00]} Qc5 {[%emt 0:04:12]} 32. Bd3 {[%emt 0:13:41]} Qe3 {[%emt 0:00:44]} 33. g3 {[%emt 0:01:09]} Nc5 {[%emt 0:00:22]} 34. Bb1 {[%emt 0:00:30]} Qf2 {[%emt 0:01:03]} 35. b3 {[%emt 0:01:01]} Nxb3 {[%emt 0:03:46]} 36. Bd3 {[%emt 0:00:04]} Nc5 {[%emt 0:00:56]} 37. Bb5 {[%emt 0:01:07]} d4 {[%emt 0:01:16]} 38. Qg1 {[%emt 0:01:20]} Qd2 {[%emt 0:01:33]} 39. Qg2 {[%emt 0:00:20]} Qe1+ {[%emt 0:00:05]} 40. Qg1 {[%emt 0:00:00]} Qe4+ {[%emt 0:00:00]} 41. Qg2 {[%emt 0:00:09]} d3 {[%emt 0:01:17]} 0-1

[Event "Vojvodina Open 2024-A 2024"]
[Site "Novi Sad"]
[Date "2024.06.24"]
[Round "1.11"]
[White "Sakmak, Kutay"]
[Black "Rohit S"]
[Result "0-1"]
[ECO "B99"]
[WhiteElo "1993"]
[BlackElo "2359"]
[Annotator "RC"]
[PlyCount "128"]
[EventDate "2024.06.03"]
[EventType "swiss"]
[EventCountry "SRB"]
[SourceTitle "playchess.com"]
[Source "ChessBase"]
[SourceQuality "1"]
[TimeControl "40/5400+30:900+30"]

1. e4 {[%emt 0:00:03]} c5 {[%emt 0:13:10]} 2. Nf3 {[%emt 0:00:08]} d6 {[%emt 0:00:06]} 3. d4 {[%emt 0:00:06]} cxd4 {[%emt 0:00:07]} 4. Nxd4 {[%emt 0:00:06]} Nf6 {[%emt 0:00:05]} 5. Nc3 {[%emt 0:00:07]} a6 {[%emt 0:00:05]} 6. Bg5 {[%emt 0:00:11]} e6 {[%emt 0:00:21]} 7. f4 {[%emt 0:00:23]} Be7 {[%emt 0:01:29]} 8. Qf3 {[%emt 0:00:15]} Qc7 {[%emt 0:02:13]} 9. O-O-O {[%emt 0:00:19]} Nbd7 {[%emt 0:00:41]} 10. g4 {[%emt 0:00:12]} h6 {[%emt 0:00:11]} 11. Bxf6 {[%emt 0:00:08]} Bxf6 {[%emt 0:00:04]} 12. h4 {[%emt 0:01:09]} Nb6 {[%emt 0:01:04]} 13. g5 {[%emt 0:00:24]} Bxd4 {[%emt 0:00:09]} 14. Rxd4 {[%emt 0:00:08]} Qc5 {[%emt 0:00:06]} 15. Rd2 {[%emt 0:00:16]} Bd7 {[%emt 0:01:08]} 16. Be2 {[%emt 0:00:24]} O-O-O {[%emt 0:02:08]} 17. Rhd1 {[%emt 0:00:31]} Bc6 {[%emt 0:03:41]} 18. Rd4 {[%emt 0:00:26]} d5 {[%emt 0:12:35]} 19. Qf2 {[%emt 0:00:49]} Qe7 {[%emt 0:06:58]} 20. exd5 {[%emt 0:01:54]} Nxd5 {[%emt 0:01:37]} 21. Nxd5 {[%emt 0:00:09]} Bxd5 {[%emt 0:04:02]} 22. Qe3 {[%emt 0:04:02]} Qc7 {[%emt 0:08:06]} 23. Bg4 {[%emt 0:15:15]} Kb8 {[%emt 0:04:26]} 24. g6 {[%emt 0:01:11]} fxg6 {[%emt 0:14:05]} 25. Bxe6 {[%emt 0:01:51]} Bxe6 {[%emt 0:00:33]} 26. Qxe6 {[%emt 0:00:55]} Rxd4 {[%emt 0:00:23]} 27. Rxd4 {[%emt 0:00:07]} Rd8 {[%emt 0:00:24]} 28. Rxd8+ {[%emt 0:02:48]} Qxd8 {[%emt 0:00:04]} 29. Qxg6 {[%emt 0:03:47]} Qxh4 {[%emt 0:00:37]} 30. Qe8+ {[%emt 0:00:48]} Ka7 {[%emt 0:00:46]} 31. Qe3+ {[%emt 0:00:09]} Ka8 {[%emt 0:00:48]} 32. Qe8+ {[%emt 0:00:08]} Ka7 {[%emt 0:00:04]} 33. Qe3+ {[%emt 0:00:06]} b6 {[%emt 0:00:28]} 34. Qe5 {[%emt 0:00:12]} Qh1+ {[%emt 0:00:32]} 35. Kd2 {[%emt 0:00:07]} Qb7 {[%emt 0:00:30]} 36. c4 {[%emt 0:01:35]} Qd7+ {[%emt 0:04:14]} 37. Ke3 {[%emt 0:03:55]} g6 {[%emt 0:00:52]} 38. Qf6 {[%emt 0:01:33]} Qh7 {[%emt 0:02:03]} 39. b4 {[%emt 0:01:56]} h5 {[%emt 0:03:19]} 40. c5 {[%emt 0:00:00]} bxc5 {[%emt 0:16:16]} 41. bxc5 {[%emt 0:01:02]} Qc7 {[%emt 0:00:00]} 42. Kd4 {[%emt 0:00:27]} Kb7 {[%emt 0:00:00]} 43. Qxg6 {[%emt 0:06:50]} Qxf4+ {[%emt 0:00:00]} 44. Kd5 {[%emt 0:00:16]} Qd2+ {[%emt 0:00:00]} 45. Ke5 {[%emt 0:00:13]} Qb2+ {[%emt 0:00:00]} 46. Ke6 {[%emt 0:11:00]} Qxa2+ {[%emt 0:00:00]} 47. Kd7 {[%emt 0:00:19]} Qd5+ {[%emt 0:00:00]} 48. Qd6 {[%emt 0:00:05]} Qf5+ {[%emt 0:00:00]} 49. Kd8 {[%emt 0:00:09]} Qc8+ {[%emt 0:00:00]} 50. Ke7 {[%emt 0:00:09]} Qc6 {[%emt 0:04:26]} 51. Qd7+ {[%emt 0:05:39]} Qc7 {[%emt 0:00:11]} 52. Ke8 {[%emt 0:00:15]} h4 {[%emt 0:02:28]} 53. Qd5+ {[%emt 0:00:08]} Qc6+ {[%emt 0:00:03]} 54. Qd7+ {[%emt 0:00:06]} Qc7 {[%emt 0:00:07]} 55. Qd5+ {[%emt 0:00:06]} Ka7 {[%emt 0:00:43]} 56. Qd6 {[%emt 0:17:42]} Qc8+ {[%emt 0:04:12]} 57. Ke7 {[%emt 0:00:09]} h3 {[%emt 0:00:42]} 58. Qb6+ {[%emt 0:09:19]} Ka8 {[%emt 0:00:01]} 59. Qd6 {[%emt 0:01:03]} Kb7 {[%emt 0:02:32]} 60. Qb6+ {[%emt 0:00:16]} Ka8 {[%emt 0:00:01]} 61. Qd6 {[%emt 0:00:01]} a5 {[%emt 0:03:52]} 62. c6 {[%emt 0:06:22]} h2 {[%emt 0:00:15]} 63. Qh6 {[%emt 0:00:26]} Qc7+ {[%emt 0:00:08]} 64. Ke8 {[%emt 0:00:31]} Ka7 {[%emt 0:00:12]} 0-1